[Event "Titled Tuesday Blitz January 10 Late 2023"]
[White "ritanovikova"]
[Black "Pasti, Aron"]
[BlackFideId "785857"]
[WhiteElo "2115"]
[BlackElo "2361"]
[Result "0-1"]
[Round "05"]
[TimeControl "180+2"]
[Date "2023.01.10"]
[WhiteClock "0:00:04"]
[BlackClock "0:01:02"]

1. d4 {[%clk 0:00:00]}  Nf6 {[%clk 0:00:00]} 2. Bf4 {[%clk 0:02:59]}  d6 {[%clk 0:02:58]} 3. Nf3 {[%clk 0:02:59]}  g6 {[%clk 0:02:58]} 4. e3 {[%clk 0:02:59]}  Bg7 {[%clk 0:02:50]} 5. h3 {[%clk 0:02:57]}  O-O {[%clk 0:02:50]} 6. Be2 {[%clk 0:02:52]}  Nbd7 {[%clk 0:02:50]} 7. O-O {[%clk 0:02:53]}  c5 {[%clk 0:02:51]} 8. c3 {[%clk 0:02:52]}  b6 {[%clk 0:02:51]} 9. Nbd2 {[%clk 0:02:52]}  Bb7 {[%clk 0:02:52]} 10. Qc2 {[%clk 0:02:50]}  Re8 {[%clk 0:02:52]} 11. Bc4 {[%clk 0:02:46]}  e5 {[%clk 0:02:49]} 12. dxe5 {[%clk 0:02:35]}  dxe5 {[%clk 0:02:44]} 13. Ng5 {[%clk 0:02:34]}  Re7 {[%clk 0:02:45]} 14. Bg3 {[%clk 0:02:18]}  Nf8 {[%clk 0:02:40]} 15. Bh4 {[%clk 0:02:13]}  Qe8 {[%clk 0:02:30]} 16. Nge4 {[%clk 0:02:04]}  Qc6 {[%clk 0:02:29]} 17. Bxf6 {[%clk 0:02:00]}  Bxf6 {[%clk 0:02:03]} 18. Nxf6+ {[%clk 0:01:34]}  Qxf6 {[%clk 0:02:02]} 19. e4 {[%clk 0:01:33]}  Ne6 {[%clk 0:02:01]} 20. Bxe6 {[%clk 0:01:29]}  Qxe6 {[%clk 0:01:59]} 21. Rfe1 {[%clk 0:01:28]}  Rd8 {[%clk 0:02:00]} 22. Nf3 {[%clk 0:01:20]}  Red7 {[%clk 0:01:59]} 23. Rad1 {[%clk 0:01:19]}  f6 {[%clk 0:01:58]} 24. Rxd7 {[%clk 0:01:14]}  Qxd7 {[%clk 0:01:58]} 25. Qc1 {[%clk 0:01:12]}  Kg7 {[%clk 0:01:58]} 26. Qe3 {[%clk 0:01:11]}  Qa4 {[%clk 0:01:57]} 27. a3 {[%clk 0:01:08]}  Qc2 {[%clk 0:01:53]} 28. Re2 {[%clk 0:01:04]}  Qb1+ {[%clk 0:01:52]} 29. Kh2 {[%clk 0:01:04]}  Rd1 {[%clk 0:01:51]} 30. Kg3 {[%clk 0:01:05]}  Rd3 {[%clk 0:01:50]} 31. Re1 {[%clk 0:01:04]}  Rxe3 {[%clk 0:01:43]} 32. Rxb1 {[%clk 0:00:57]}  Bxe4 {[%clk 0:01:34]} 33. Rd1 {[%clk 0:00:56]}  Rd3 {[%clk 0:01:35]} 34. Re1 {[%clk 0:00:54]}  Bxf3 {[%clk 0:01:34]} 35. gxf3 {[%clk 0:00:50]}  Rd2 {[%clk 0:01:32]} 36. b4 {[%clk 0:00:51]}  Rd3 {[%clk 0:01:31]} 37. bxc5 {[%clk 0:00:43]}  bxc5 {[%clk 0:01:29]} 38. Rb1 {[%clk 0:00:34]}  Rxc3 {[%clk 0:01:30]} 39. Rb7+ {[%clk 0:00:34]}  Kh6 {[%clk 0:01:31]} 40. Rxa7 {[%clk 0:00:34]}  e4 {[%clk 0:01:31]} 41. a4 {[%clk 0:00:34]}  Rxf3+ {[%clk 0:01:32]} 42. Kg2 {[%clk 0:00:30]}  Ra3 {[%clk 0:01:31]} 43. a5 {[%clk 0:00:30]}  f5 {[%clk 0:01:31]} 44. a6 {[%clk 0:00:25]}  c4 {[%clk 0:01:31]} 45. Ra8 {[%clk 0:00:23]}  c3 {[%clk 0:01:32]} 46. a7 {[%clk 0:00:22]}  c2 {[%clk 0:01:31]} 47. Rc8 {[%clk 0:00:22]}  Rxa7 {[%clk 0:01:30]} 48. Rxc2 {[%clk 0:00:21]}  Kg5 {[%clk 0:01:30]} 49. Rc3 {[%clk 0:00:21]}  h5 {[%clk 0:01:29]} 50. Rg3+ {[%clk 0:00:21]}  Kf6 {[%clk 0:01:29]} 51. h4 {[%clk 0:00:21]}  f4 {[%clk 0:01:29]} 52. Rb3 {[%clk 0:00:21]}  Ra2 {[%clk 0:01:25]} 53. Kf1 {[%clk 0:00:20]}  Kf5 {[%clk 0:01:25]} 54. Rb6 {[%clk 0:00:18]}  Ra1+ {[%clk 0:01:25]} 55. Ke2 {[%clk 0:00:17]}  f3+ {[%clk 0:01:16]} 56. Ke3 {[%clk 0:00:16]}  Re1+ {[%clk 0:01:14]} 57. Kd4 {[%clk 0:00:15]}  Re2 {[%clk 0:01:13]} 58. Rb5+ {[%clk 0:00:14]}  Kf4 {[%clk 0:01:14]} 59. Rg5 {[%clk 0:00:11]}  Rd2+ {[%clk 0:01:04]} 60. Kc3 {[%clk 0:00:11]}  Rxf2 {[%clk 0:01:03]} 61. Rxg6 {[%clk 0:00:10]}  Rh2 {[%clk 0:01:04]} 62. Kd4 {[%clk 0:00:10]}  Rd2+ {[%clk 0:01:04]} 63. Kc3 {[%clk 0:00:08]}  Rd5 {[%clk 0:01:04]} 64. Rg1 {[%clk 0:00:08]}  f2 {[%clk 0:01:03]} 65. Rg5 {[%clk 0:00:04]}  Rxg5 {[%clk 0:01:02]} 0-1


[Site "https://www.chess.com"]

[Event "Titled Tuesday Blitz January 10 Late 2023"]
[White "Filgueira, Hernan"]
[Black "Cueto, Jonny"]
[WhiteFideId "101770"]
[BlackFideId "3300145"]
[WhiteElo "2283"]
[BlackElo "2122"]
[Result "1-0"]
[Round "05"]
[TimeControl "180+2"]
[Date "2023.01.10"]
[WhiteClock "0:01:38"]
[BlackClock "0:00:06"]

1. b3 {[%clk 0:00:00]}  e5 {[%clk 0:00:00]} 2. Bb2 {[%clk 0:02:58]}  d6 {[%clk 0:02:39]} 3. e3 {[%clk 0:02:58]}  f5 {[%clk 0:02:30]} 4. d4 {[%clk 0:02:58]}  e4 {[%clk 0:02:25]} 5. d5 {[%clk 0:02:57]}  Nf6 {[%clk 0:02:12]} 6. c4 {[%clk 0:02:56]}  Be7 {[%clk 0:02:10]} 7. Nh3 {[%clk 0:02:56]}  a5 {[%clk 0:02:11]} 8. Nc3 {[%clk 0:02:53]}  Na6 {[%clk 0:01:50]} 9. Nf4 {[%clk 0:02:52]}  Nc5 {[%clk 0:01:50]} 10. Be2 {[%clk 0:02:51]}  O-O {[%clk 0:01:40]} 11. O-O {[%clk 0:02:50]}  Kh8 {[%clk 0:01:26]} 12. f3 {[%clk 0:02:48]}  exf3 {[%clk 0:01:26]} 13. Bxf3 {[%clk 0:02:43]}  Bd7 {[%clk 0:01:16]} 14. Qc2 {[%clk 0:02:39]}  Qe8 {[%clk 0:01:16]} 15. Rae1 {[%clk 0:02:29]}  Qf7 {[%clk 0:01:16]} 16. Nb5 {[%clk 0:02:26]}  Bxb5 {[%clk 0:00:25]} 17. cxb5 {[%clk 0:02:18]}  Nce4 {[%clk 0:00:23]} 18. Ne6 {[%clk 0:02:17]}  Rfc8 {[%clk 0:00:16]} 19. Bxe4 {[%clk 0:02:11]}  Nxe4 {[%clk 0:00:09]} 20. Nxg7 {[%clk 0:02:10]}  Bf6 {[%clk 0:00:08]} 21. Nxf5 {[%clk 0:02:04]}  Bxb2 {[%clk 0:00:08]} 22. Qxb2+ {[%clk 0:02:04]}  Qf6 {[%clk 0:00:07]} 23. Qc2 {[%clk 0:02:03]}  Re8 {[%clk 0:00:07]} 24. Ng3 {[%clk 0:01:53]}  Qg5 {[%clk 0:00:07]} 25. Nxe4 {[%clk 0:01:40]}  Qg6 {[%clk 0:00:06]} 26. Qc3+ {[%clk 0:01:39]}  Kg8 {[%clk 0:00:06]} 27. Nf6+ {[%clk 0:01:38]}  Kg7 {[%clk 0:00:06]} 28. Nxe8+ {[%clk 0:01:38]} 1-0


[Site "https://www.chess.com"]

[Event "Titled Tuesday Blitz January 10 Late 2023"]
[White "Petukhov, Dmitry"]
[Black "Zanette, Edgard Vinicius"]
[WhiteFideId "4142748"]
[BlackFideId "2109263"]
[WhiteElo "2350"]
[BlackElo "2085"]
[Result "1-0"]
[Round "05"]
[TimeControl "180+2"]
[Date "2023.01.10"]
[WhiteClock "0:02:21"]
[BlackClock "0:00:10"]

1. e4 {[%clk 0:00:00]}  c5 {[%clk 0:00:00]} 2. c3 {[%clk 0:03:00]}  d5 {[%clk 0:03:00]} 3. exd5 {[%clk 0:02:59]}  Qxd5 {[%clk 0:02:59]} 4. d4 {[%clk 0:02:59]}  Nc6 {[%clk 0:03:00]} 5. Nf3 {[%clk 0:03:00]}  Bg4 {[%clk 0:02:59]} 6. Be2 {[%clk 0:03:01]}  cxd4 {[%clk 0:02:59]} 7. cxd4 {[%clk 0:03:01]}  e6 {[%clk 0:02:59]} 8. O-O {[%clk 0:03:01]}  Nf6 {[%clk 0:02:57]} 9. h3 {[%clk 0:03:01]}  Bh5 {[%clk 0:02:58]} 10. Nc3 {[%clk 0:03:02]}  Qa5 {[%clk 0:02:57]} 11. Be3 {[%clk 0:03:02]}  Be7 {[%clk 0:02:58]} 12. Qb3 {[%clk 0:03:02]}  Qb4 {[%clk 0:02:45]} 13. g4 {[%clk 0:03:02]}  Qxb3 {[%clk 0:02:42]} 14. axb3 {[%clk 0:03:01]}  Bg6 {[%clk 0:02:32]} 15. Ne5 {[%clk 0:03:02]}  O-O {[%clk 0:02:32]} 16. Bf3 {[%clk 0:03:02]}  Nd8 {[%clk 0:02:21]} 17. g5 {[%clk 0:03:01]}  Nh5 {[%clk 0:01:26]} 18. d5 {[%clk 0:02:58]}  exd5 {[%clk 0:01:16]} 19. Nxd5 {[%clk 0:02:50]}  Bd6 {[%clk 0:01:10]} 20. Nc4 {[%clk 0:02:51]}  Bb8 {[%clk 0:01:10]} 21. Rfe1 {[%clk 0:02:33]}  Ne6 {[%clk 0:00:33]} 22. Ne7+ {[%clk 0:02:28]}  Kh8 {[%clk 0:00:24]} 23. Bxb7 {[%clk 0:02:25]}  Bc7 {[%clk 0:00:24]} 24. Nxg6+ {[%clk 0:02:25]}  fxg6 {[%clk 0:00:11]} 25. Bxa8 {[%clk 0:02:18]}  Rxa8 {[%clk 0:00:10]} 26. Rxa7 {[%clk 0:02:19]}  Rxa7 {[%clk 0:00:10]} 27. Bxa7 {[%clk 0:02:20]}  Nef4 {[%clk 0:00:10]} 28. Re8# {[%clk 0:02:21]} 1-0


[Site "https://www.chess.com"]

[Event "Titled Tuesday Blitz January 10 Late 2023"]
[White "Kozin, Yuri"]
[Black "Thiel, Thomas"]
[WhiteFideId "4129920"]
[BlackFideId "4615964"]
[WhiteElo "2251"]
[BlackElo "2234"]
[Result "1-0"]
[Round "05"]
[TimeControl "180+2"]
[Date "2023.01.10"]
[WhiteClock "0:00:15"]
[BlackClock "0:00:37"]

1. e4 {[%clk 0:00:00]}  d5 {[%clk 0:00:00]} 2. exd5 {[%clk 0:03:00]}  Nf6 {[%clk 0:02:56]} 3. c4 {[%clk 0:03:01]}  c6 {[%clk 0:02:56]} 4. d4 {[%clk 0:03:01]}  cxd5 {[%clk 0:02:53]} 5. Nc3 {[%clk 0:03:01]}  Nc6 {[%clk 0:02:51]} 6. Bg5 {[%clk 0:03:02]}  Be6 {[%clk 0:02:50]} 7. Be2 {[%clk 0:03:02]}  g6 {[%clk 0:02:48]} 8. Bf3 {[%clk 0:03:02]}  Bf5 {[%clk 0:02:47]} 9. cxd5 {[%clk 0:03:02]}  Nb8 {[%clk 0:02:27]} 10. Nge2 {[%clk 0:02:53]}  Bg7 {[%clk 0:02:20]} 11. O-O {[%clk 0:02:42]}  O-O {[%clk 0:02:12]} 12. Ng3 {[%clk 0:02:42]}  Bc8 {[%clk 0:02:08]} 13. Re1 {[%clk 0:02:42]}  Nbd7 {[%clk 0:02:06]} 14. Qb3 {[%clk 0:02:32]}  Nb6 {[%clk 0:02:05]} 15. a4 {[%clk 0:02:28]}  a5 {[%clk 0:02:04]} 16. Rac1 {[%clk 0:02:27]}  Qd6 {[%clk 0:02:02]} 17. Nb5 {[%clk 0:02:00]}  Qb4 {[%clk 0:01:57]} 18. Qxb4 {[%clk 0:01:58]}  axb4 {[%clk 0:01:53]} 19. b3 {[%clk 0:01:55]}  Nfxd5 {[%clk 0:01:54]} 20. Bxe7 {[%clk 0:01:55]}  Nxe7 {[%clk 0:01:49]} 21. Rxe7 {[%clk 0:01:50]}  Bf6 {[%clk 0:01:44]} 22. Rec7 {[%clk 0:01:50]}  Bg5 {[%clk 0:01:35]} 23. Re1 {[%clk 0:01:43]}  Be6 {[%clk 0:01:33]} 24. Bxb7 {[%clk 0:01:36]}  Rad8 {[%clk 0:01:25]} 25. Ne4 {[%clk 0:01:24]}  Bf4 {[%clk 0:01:19]} 26. Rc6 {[%clk 0:01:15]}  Nd7 {[%clk 0:01:13]} 27. d5 {[%clk 0:01:04]}  Bxd5 {[%clk 0:01:05]} 28. g3 {[%clk 0:00:55]}  Bxc6 {[%clk 0:01:02]} 29. Bxc6 {[%clk 0:00:45]}  Nb8 {[%clk 0:01:00]} 30. Bb7 {[%clk 0:00:46]}  Be5 {[%clk 0:00:54]} 31. a5 {[%clk 0:00:41]}  Bd4 {[%clk 0:00:52]} 32. a6 {[%clk 0:00:40]}  Nd7 {[%clk 0:00:48]} 33. Nxd4 {[%clk 0:00:37]}  Ne5 {[%clk 0:00:48]} 34. f4 {[%clk 0:00:23]}  Nd3 {[%clk 0:00:42]} 35. Rd1 {[%clk 0:00:19]}  Rxd4 {[%clk 0:00:38]} 36. a7 {[%clk 0:00:14]}  f5 {[%clk 0:00:37]} 37. Ng5 {[%clk 0:00:15]} 1-0


[Site "https://www.chess.com"]

[Event "Titled Tuesday Blitz January 10 Late 2023"]
[White "Stanisz, Patryk"]
[Black "Belenkaya, Dina"]
[WhiteFideId "1123106"]
[BlackFideId "24142654"]
[WhiteElo "2161"]
[BlackElo "2267"]
[Result "1-0"]
[Round "05"]
[TimeControl "180+2"]
[Date "2023.01.10"]
[WhiteClock "0:00:06"]
[BlackClock "0:00:21"]

1. d4 {[%clk 0:00:00]}  Nf6 {[%clk 0:00:00]} 2. c4 {[%clk 0:03:00]}  g6 {[%clk 0:02:58]} 3. Nc3 {[%clk 0:03:00]}  Bg7 {[%clk 0:02:53]} 4. e4 {[%clk 0:03:00]}  d6 {[%clk 0:02:52]} 5. Be2 {[%clk 0:03:00]}  O-O {[%clk 0:02:46]} 6. g4 {[%clk 0:03:01]}  e5 {[%clk 0:02:46]} 7. d5 {[%clk 0:03:01]}  Ne8 {[%clk 0:02:37]} 8. h4 {[%clk 0:03:02]}  a6 {[%clk 0:02:28]} 9. h5 {[%clk 0:02:59]}  g5 {[%clk 0:02:22]} 10. h6 {[%clk 0:02:55]}  Bf6 {[%clk 0:02:20]} 11. Rh5 {[%clk 0:02:46]}  Kh8 {[%clk 0:02:18]} 12. Be3 {[%clk 0:02:41]}  Nd7 {[%clk 0:02:17]} 13. Qd2 {[%clk 0:02:38]}  Rg8 {[%clk 0:02:15]} 14. Nh3 {[%clk 0:02:36]}  Nc5 {[%clk 0:02:14]} 15. O-O-O {[%clk 0:02:35]}  b5 {[%clk 0:02:08]} 16. f3 {[%clk 0:02:25]}  b4 {[%clk 0:02:01]} 17. Nb1 {[%clk 0:02:08]}  a5 {[%clk 0:01:58]} 18. Nxg5 {[%clk 0:02:05]}  Qe7 {[%clk 0:01:55]} 19. Nh3 {[%clk 0:01:47]}  Qf8 {[%clk 0:01:47]} 20. Rg1 {[%clk 0:01:43]}  a4 {[%clk 0:01:39]} 21. g5 {[%clk 0:01:27]}  Be7 {[%clk 0:01:35]} 22. f4 {[%clk 0:01:01]}  a3 {[%clk 0:01:34]} 23. bxa3 {[%clk 0:00:58]}  b3 {[%clk 0:01:31]} 24. Bxc5 {[%clk 0:00:55]}  b2+ {[%clk 0:01:25]} 25. Qxb2 {[%clk 0:00:51]}  dxc5 {[%clk 0:01:24]} 26. Qxe5+ {[%clk 0:00:49]}  f6 {[%clk 0:01:22]} 27. Qc3 {[%clk 0:00:48]}  Bd6 {[%clk 0:01:22]} 28. e5 {[%clk 0:00:32]}  Bxh3 {[%clk 0:01:14]} 29. Rxh3 {[%clk 0:00:30]}  fxe5 {[%clk 0:00:55]} 30. Rf3 {[%clk 0:00:30]}  Qf5 {[%clk 0:00:54]} 31. Bd3 {[%clk 0:00:23]}  Qf7 {[%clk 0:00:44]} 32. Rgf1 {[%clk 0:00:15]}  Qe7 {[%clk 0:00:32]} 33. Re1 {[%clk 0:00:15]}  Qf7 {[%clk 0:00:31]} 34. Bc2 {[%clk 0:00:11]}  Rxg5 {[%clk 0:00:26]} 35. fxe5 {[%clk 0:00:08]}  Bxe5 {[%clk 0:00:23]} 36. Rxf7 {[%clk 0:00:08]}  Bxc3 {[%clk 0:00:21]} 37. Nxc3 {[%clk 0:00:06]}  Rg8 {[%clk 0:00:21]} 38. Rxh7# {[%clk 0:00:06]} 1-0


[Site "https://www.chess.com"]

[Event "Titled Tuesday Blitz January 10 Late 2023"]
[White "Sailer, Mike"]
[Black "Perez Rodriguez, Jennifer"]
[WhiteFideId "2012901"]
[BlackFideId "3507831"]
[WhiteElo "2109"]
[BlackElo "2242"]
[Result "0-1"]
[Round "05"]
[TimeControl "180+2"]
[Date "2023.01.10"]
[WhiteClock "0:00:02"]
[BlackClock "0:00:39"]

1. d4 {[%clk 0:00:00]}  d5 {[%clk 0:00:00]} 2. Bf4 {[%clk 0:02:59]}  c5 {[%clk 0:02:57]} 3. e3 {[%clk 0:02:59]}  Nc6 {[%clk 0:02:54]} 4. Nc3 {[%clk 0:02:58]}  cxd4 {[%clk 0:02:54]} 5. exd4 {[%clk 0:02:59]}  a6 {[%clk 0:02:41]} 6. Nf3 {[%clk 0:02:58]}  Nf6 {[%clk 0:02:41]} 7. Be2 {[%clk 0:02:56]}  Bg4 {[%clk 0:02:41]} 8. O-O {[%clk 0:02:56]}  e6 {[%clk 0:02:40]} 9. h3 {[%clk 0:02:55]}  Bh5 {[%clk 0:02:40]} 10. Ne5 {[%clk 0:02:56]}  Bxe2 {[%clk 0:02:40]} 11. Nxe2 {[%clk 0:02:55]}  Bd6 {[%clk 0:02:39]} 12. c3 {[%clk 0:02:56]}  O-O {[%clk 0:02:35]} 13. Nc1 {[%clk 0:02:50]}  Qc7 {[%clk 0:02:34]} 14. Ncd3 {[%clk 0:02:49]}  Ne4 {[%clk 0:02:26]} 15. Nxc6 {[%clk 0:02:46]}  Qxc6 {[%clk 0:02:24]} 16. Bxd6 {[%clk 0:02:35]}  Qxd6 {[%clk 0:02:19]} 17. Re1 {[%clk 0:02:34]}  Rac8 {[%clk 0:02:18]} 18. Qe2 {[%clk 0:02:23]}  a5 {[%clk 0:02:16]} 19. a3 {[%clk 0:02:10]}  b5 {[%clk 0:02:09]} 20. f3 {[%clk 0:02:03]}  Ng3 {[%clk 0:02:06]} 21. Qe5 {[%clk 0:02:01]}  Qxe5 {[%clk 0:02:01]} 22. Rxe5 {[%clk 0:02:01]}  Nf5 {[%clk 0:02:00]} 23. Nc5 {[%clk 0:01:57]}  Nd6 {[%clk 0:01:56]} 24. g4 {[%clk 0:01:49]}  Rfd8 {[%clk 0:01:55]} 25. f4 {[%clk 0:01:28]}  g6 {[%clk 0:01:36]} 26. Rae1 {[%clk 0:01:09]}  Nc4 {[%clk 0:01:32]} 27. R1e2 {[%clk 0:00:53]}  Nd6 {[%clk 0:01:30]} 28. R5e3 {[%clk 0:00:51]}  Rb8 {[%clk 0:01:26]} 29. Nd3 {[%clk 0:00:48]}  Rdc8 {[%clk 0:01:25]} 30. Kg2 {[%clk 0:00:41]}  Kg7 {[%clk 0:01:17]} 31. Nc5 {[%clk 0:00:33]}  b4 {[%clk 0:01:12]} 32. axb4 {[%clk 0:00:31]}  axb4 {[%clk 0:01:10]} 33. Na6 {[%clk 0:00:26]}  bxc3 {[%clk 0:01:10]} 34. Nxb8 {[%clk 0:00:27]}  c2 {[%clk 0:01:04]} 35. Rxc2 {[%clk 0:00:27]}  Rxc2+ {[%clk 0:01:04]} 36. Kf3 {[%clk 0:00:25]}  Rxb2 {[%clk 0:01:03]} 37. Nc6 {[%clk 0:00:22]}  Ne4 {[%clk 0:01:02]} 38. Ra3 {[%clk 0:00:13]}  Rf2+ {[%clk 0:01:02]} 39. Ke3 {[%clk 0:00:02]}  Rh2 {[%clk 0:00:58]} 40. Ra7 {[%clk 0:00:03]}  Rxh3+ {[%clk 0:00:59]} 41. Ke2 {[%clk 0:00:03]}  Rg3 {[%clk 0:00:59]} 42. Ne5 {[%clk 0:00:04]}  Nd6 {[%clk 0:00:46]} 43. Rd7 {[%clk 0:00:04]}  Nc4 {[%clk 0:00:46]} 44. Rxf7+ {[%clk 0:00:05]}  Kg8 {[%clk 0:00:42]} 45. Rc7 {[%clk 0:00:05]}  Nxe5 {[%clk 0:00:43]} 46. dxe5 {[%clk 0:00:04]}  Rxg4 {[%clk 0:00:43]} 47. Re7 {[%clk 0:00:03]}  Rxf4 {[%clk 0:00:43]} 48. Rxe6 {[%clk 0:00:03]}  Kf7 {[%clk 0:00:40]} 49. Rd6 {[%clk 0:00:04]}  Re4+ {[%clk 0:00:40]} 50. Kd3 {[%clk 0:00:04]}  Rxe5 {[%clk 0:00:40]} 51. Kd4 {[%clk 0:00:03]}  Rf5 {[%clk 0:00:40]} 52. Rd7+ {[%clk 0:00:03]}  Kg8 {[%clk 0:00:40]} 53. Kd3 {[%clk 0:00:04]}  h5 {[%clk 0:00:39]} 54. Kd4 {[%clk 0:00:02]}  h4 {[%clk 0:00:39]} 0-1


[Site "https://www.chess.com"]

[Event "Titled Tuesday Blitz January 10 Late 2023"]
[White "Kaminski, Victor"]
[Black "Delaere, Jeroen"]
[WhiteFideId "1131630"]
[BlackFideId "204129"]
[WhiteElo "2247"]
[BlackElo "2104"]
[Result "1-0"]
[Round "05"]
[TimeControl "180+2"]
[Date "2023.01.10"]
[WhiteClock "0:00:15"]
[BlackClock "0:00:05"]

1. e4 {[%clk 0:00:00]}  c5 {[%clk 0:00:00]} 2. Nf3 {[%clk 0:02:59]}  e6 {[%clk 0:02:58]} 3. g3 {[%clk 0:02:58]}  Nc6 {[%clk 0:02:55]} 4. Bg2 {[%clk 0:02:57]}  d5 {[%clk 0:02:49]} 5. exd5 {[%clk 0:02:57]}  exd5 {[%clk 0:02:48]} 6. d4 {[%clk 0:02:58]}  cxd4 {[%clk 0:02:47]} 7. O-O {[%clk 0:02:59]}  Nf6 {[%clk 0:02:40]} 8. Nxd4 {[%clk 0:02:58]}  Be7 {[%clk 0:02:38]} 9. c4 {[%clk 0:02:47]}  Nxd4 {[%clk 0:02:37]} 10. Qxd4 {[%clk 0:02:44]}  dxc4 {[%clk 0:02:29]} 11. Qxc4 {[%clk 0:02:42]}  O-O {[%clk 0:02:27]} 12. Nc3 {[%clk 0:02:40]}  Be6 {[%clk 0:02:24]} 13. Qa4 {[%clk 0:02:34]}  Nd7 {[%clk 0:02:20]} 14. Be3 {[%clk 0:02:33]}  Nb6 {[%clk 0:01:56]} 15. Qc2 {[%clk 0:02:22]}  Qc8 {[%clk 0:01:45]} 16. Rac1 {[%clk 0:02:10]}  Nc4 {[%clk 0:01:35]} 17. Bd4 {[%clk 0:02:02]}  Bc5 {[%clk 0:01:30]} 18. Rfd1 {[%clk 0:01:54]}  Bxd4 {[%clk 0:01:21]} 19. Rxd4 {[%clk 0:01:45]}  Rb8 {[%clk 0:01:19]} 20. Nd5 {[%clk 0:01:46]}  Bxd5 {[%clk 0:01:10]} 21. Bxd5 {[%clk 0:01:16]}  Nb6 {[%clk 0:01:01]} 22. Qxc8 {[%clk 0:01:17]}  Rfxc8 {[%clk 0:00:55]} 23. Rxc8+ {[%clk 0:01:15]}  Rxc8 {[%clk 0:00:51]} 24. Bxb7 {[%clk 0:01:13]}  Rb8 {[%clk 0:00:41]} 25. b3 {[%clk 0:01:10]}  g6 {[%clk 0:00:37]} 26. Ba6 {[%clk 0:01:00]}  Re8 {[%clk 0:00:33]} 27. Kf1 {[%clk 0:00:57]}  Kg7 {[%clk 0:00:28]} 28. Bc4 {[%clk 0:00:56]}  Nxc4 {[%clk 0:00:24]} 29. Rxc4 {[%clk 0:00:52]}  Re7 {[%clk 0:00:22]} 30. Rc6 {[%clk 0:00:53]}  h5 {[%clk 0:00:20]} 31. h4 {[%clk 0:00:51]}  Kg8 {[%clk 0:00:18]} 32. Ra6 {[%clk 0:00:50]}  Kg7 {[%clk 0:00:15]} 33. Kg2 {[%clk 0:00:26]}  Kg8 {[%clk 0:00:15]} 34. Kf3 {[%clk 0:00:22]}  Kg7 {[%clk 0:00:14]} 35. Ra5 {[%clk 0:00:23]}  Kg8 {[%clk 0:00:14]} 36. b4 {[%clk 0:00:20]}  Kg7 {[%clk 0:00:13]} 37. a3 {[%clk 0:00:20]}  Kg8 {[%clk 0:00:13]} 38. b5 {[%clk 0:00:20]}  Kg7 {[%clk 0:00:12]} 39. a4 {[%clk 0:00:19]}  Kg8 {[%clk 0:00:12]} 40. Ra6 {[%clk 0:00:19]}  Kg7 {[%clk 0:00:12]} 41. a5 {[%clk 0:00:19]}  Rb7 {[%clk 0:00:11]} 42. b6 {[%clk 0:00:15]}  axb6 {[%clk 0:00:09]} 43. Rxb6 {[%clk 0:00:16]}  Ra7 {[%clk 0:00:07]} 44. a6 {[%clk 0:00:15]}  Kf8 {[%clk 0:00:05]} 45. Ke4 {[%clk 0:00:15]} 1-0


[Site "https://www.chess.com"]

[Event "Titled Tuesday Blitz January 10 Late 2023"]
[White "Michalski, Olaf"]
[Black "Dedona, Mark"]
[WhiteFideId "1106740"]
[BlackFideId "30920256"]
[WhiteElo "2273"]
[BlackElo "1662"]
[Result "0-1"]
[Round "05"]
[TimeControl "180+2"]
[Date "2023.01.10"]
[WhiteClock "0:00:07"]
[BlackClock "0:01:36"]

1. d4 {[%clk 0:00:00]}  Nf6 {[%clk 0:00:00]} 2. c4 {[%clk 0:03:00]}  c5 {[%clk 0:02:59]} 3. d5 {[%clk 0:03:00]}  e6 {[%clk 0:02:59]} 4. Nc3 {[%clk 0:03:00]}  exd5 {[%clk 0:02:59]} 5. cxd5 {[%clk 0:03:00]}  d6 {[%clk 0:03:00]} 6. Nf3 {[%clk 0:03:00]}  g6 {[%clk 0:03:01]} 7. Bf4 {[%clk 0:02:59]}  a6 {[%clk 0:03:01]} 8. a4 {[%clk 0:03:00]}  Bg7 {[%clk 0:03:01]} 9. Nd2 {[%clk 0:02:59]}  O-O {[%clk 0:03:01]} 10. Nc4 {[%clk 0:02:59]}  Ne8 {[%clk 0:03:00]} 11. a5 {[%clk 0:02:58]}  g5 {[%clk 0:02:59]} 12. Bg3 {[%clk 0:02:54]}  f5 {[%clk 0:02:33]} 13. Nb6 {[%clk 0:02:49]}  Ra7 {[%clk 0:02:33]} 14. Nxc8 {[%clk 0:02:17]}  Qxc8 {[%clk 0:02:33]} 15. e3 {[%clk 0:02:17]}  Nd7 {[%clk 0:02:32]} 16. f4 {[%clk 0:01:59]}  g4 {[%clk 0:02:30]} 17. Bd3 {[%clk 0:01:46]}  c4 {[%clk 0:02:27]} 18. Bc2 {[%clk 0:01:41]}  Nc5 {[%clk 0:02:24]} 19. O-O {[%clk 0:01:40]}  Nf6 {[%clk 0:02:24]} 20. Bh4 {[%clk 0:01:38]}  Re8 {[%clk 0:02:22]} 21. Re1 {[%clk 0:01:25]}  Nfe4 {[%clk 0:02:13]} 22. Bxe4 {[%clk 0:01:20]}  Nxe4 {[%clk 0:02:13]} 23. Qc2 {[%clk 0:01:10]}  Bxc3 {[%clk 0:02:12]} 24. bxc3 {[%clk 0:01:04]}  Qc5 {[%clk 0:02:11]} 25. Bf2 {[%clk 0:01:03]}  Qxd5 {[%clk 0:02:08]} 26. Red1 {[%clk 0:00:48]}  Qe6 {[%clk 0:02:04]} 27. Rd4 {[%clk 0:00:46]}  Raa8 {[%clk 0:02:03]} 28. Rb1 {[%clk 0:00:39]}  Rab8 {[%clk 0:02:01]} 29. Rb6 {[%clk 0:00:36]}  Red8 {[%clk 0:02:00]} 30. Bh4 {[%clk 0:00:36]}  Rd7 {[%clk 0:01:56]} 31. Kf1 {[%clk 0:00:29]}  Nc5 {[%clk 0:01:56]} 32. Qe2 {[%clk 0:00:21]}  Nd3 {[%clk 0:01:55]} 33. Rxd3 {[%clk 0:00:18]}  cxd3 {[%clk 0:01:50]} 34. Qxd3 {[%clk 0:00:12]}  Re8 {[%clk 0:01:48]} 35. Bf2 {[%clk 0:00:12]}  Qe4 {[%clk 0:01:47]} 36. Qd2 {[%clk 0:00:12]}  Qc4+ {[%clk 0:01:41]} 37. Kg1 {[%clk 0:00:08]}  Rc8 {[%clk 0:01:39]} 38. Rxd6 {[%clk 0:00:08]}  Rxd6 {[%clk 0:01:37]} 39. Qxd6 {[%clk 0:00:07]}  Qxc3 {[%clk 0:01:38]} 40. Qe6+ {[%clk 0:00:08]}  Kg7 {[%clk 0:01:39]} 41. Bh4 {[%clk 0:00:08]}  Qc1+ {[%clk 0:01:39]} 42. Kf2 {[%clk 0:00:07]}  Rc2+ {[%clk 0:01:36]} 43. Kg3 {[%clk 0:00:07]}  Qe1# {[%clk 0:01:36]} 0-1


[Site "https://www.chess.com"]